bitfinex-derivatives/quotes_BTCF0:USTF0_20241226
["timestamp","ask_amount","ask_price","bid_price","bid_amount"]
[1735234152857,0.07683583,96009.0,96008.0,0.04499998]
[1735234153056,0.07383583,96009.0,96008.0,0.04499998]
[1735234153258,0.07683583,96009.0,96008.0,0.04499998]
[1735234154150,0.07683583,96009.0,96008.0,0.01020355]
[1735234154151,0.07383583,96009.0,96008.0,0.01020355]
[1735234154353,0.052131,95993.0,95978.0,0.2451]
[1735234154563,0.0758751,95990.0,95978.0,0.2451]
[1735234155268,0.18600328,95985.0,95978.0,0.2451]
[1735234155566,0.18600328,95985.0,95978.0,0.2491]
[1735234156657,0.18600328,95982.0,95978.0,0.2491]
[1735234156861,0.18600328,95982.0,95978.0,0.2581]
[1735234157961,0.03105122,95985.0,95978.0,0.2581]
[1735234158463,0.03105122,95985.0,95978.0,0.2541]
[1735234158666,0.03105122,95985.0,95978.0,0.2581]
[1735234159460,0.03005122,95985.0,95978.0,0.2491]
[1735234159664,0.001,95982.0,95978.0,0.2581]
[1735234160271,0.001,95985.0,95978.0,0.2581]
[1735234160670,0.052139,95979.0,95978.0,0.2581]
[1735234161668,0.053136,95985.0,95978.0,0.2581]
[1735234161857,0.052136,95983.0,95978.0,0.2581]
[1735234162061,0.052136,95983.0,95978.0,0.2491]
[1735234162368,0.001,95982.0,95978.0,0.2571]
[1735234162571,0.001,95982.0,95978.0,0.2561]
[1735234162769,0.001,95979.0,95978.0,0.2561]
[1735234163275,0.08298317,95987.0,95978.0,0.2451]
[1735234163571,0.001,95983.0,95978.0,0.2561]
[1735234164969,0.03084917,95987.0,95978.0,0.2481]
[1735234165171,0.001,95979.0,95978.0,0.2551]
[1735234165768,0.053136,95983.0,95978.0,0.2551]
[1735234166172,0.053136,95983.0,95978.0,0.2521]
[1735234166370,0.001,95979.0,95978.0,0.2541]
[1735234166971,0.053136,95983.0,95978.0,0.2541]
[1735234167167,0.001,95983.0,95978.0,0.2541]
[1735234168582,0.001,95979.0,95978.0,0.2511]
[1735234168771,0.001,95979.0,95978.0,0.2541]
[1735234168971,0.02999544,95989.0,95978.0,0.2481]
[1735234169172,0.001,95983.0,95978.0,0.2531]
[1735234169480,0.001,95983.0,95978.0,0.2521]
[1735234169678,0.001,95979.0,95978.0,0.2521]
[1735234171277,0.1057568,95990.0,95978.0,0.2521]
[1735234171479,0.001,95983.0,95978.0,0.2521]
[1735234171976,0.18590762,95995.0,95994.0,0.05213]
[1735234172177,0.11016923,96012.0,95985.0,0.0758751]
[1735234172374,0.11016923,96012.0,96006.0,0.052124]
[1735234172569,0.2472306,96009.0,96006.0,0.052124]
[1735234174482,0.0303969,96009.0,96007.0,0.4832]
[1735234174696,0.0758751,96020.0,96007.0,0.4832]
[1735234175380,0.005,96009.0,96007.0,0.4832]
[1735234175580,0.005,96009.0,96008.0,0.236]
[1735234176284,0.11531719,96020.0,96008.0,0.236]
[1735234176577,0.11231719,96020.0,96008.0,0.236]
[1735234176784,0.003,96009.0,96008.0,0.236]
[1735234177878,0.009,96009.0,96008.0,0.237]
[1735234178890,0.006,96009.0,96008.0,0.237]
[1735234180278,0.009,96009.0,96008.0,0.237]
[1735234181086,0.009,96009.0,96008.0,0.289123]
[1735234181283,0.0391602,96009.0,96008.0,0.289123]
[1735234181595,0.009,96009.0,96008.0,0.289123]
[1735234182783,0.009,96009.0,96008.0,0.237]
[1735234182980,0.009,96009.0,96008.0,0.001]
[1735234186885,0.03949656,96009.0,96008.0,0.001]
[1735234187091,0.09161856,96009.0,96008.0,0.001]
[1735234187282,0.33481856,96009.0,96008.0,0.001]
[1735234189094,0.28269656,96009.0,96008.0,0.001]
[1735234189395,0.03949656,96009.0,96008.0,0.001]
[1735234191886,0.03849656,96009.0,96008.0,0.001]
[1735234194193,0.03849656,96009.0,95965.0,0.052146]
[1735234194194,0.052137,95983.0,95965.0,0.052146]
[1735234194394,0.052137,95983.0,95967.0,0.052145]
[1735234194597,0.052137,95983.0,95963.0,1.01873861]
[1735234194792,0.052137,95983.0,95968.0,0.052144]
[1735234195190,0.18558483,95981.0,95968.0,0.052144]
[1735234195889,0.18558483,95981.0,95975.0,0.007]
[1735234196092,0.00056001,95996.0,95986.0,0.052134]
[1735234196397,0.00056001,95996.0,95987.0,0.6974]
[1735234196599,0.052768,95998.0,95987.0,0.6974]
[1735234196791,0.052128,95998.0,95987.0,0.6974]
[1735234196990,0.0758751,96000.0,95985.0,0.052135]
[1735234197298,0.0758751,96000.0,95975.0,0.007]
[1735234197299,0.0758751,96000.0,95986.0,0.2319]
[1735234197487,0.0758751,96000.0,95990.0,0.052133]
[1735234199096,0.10144378,96000.0,95990.0,0.052133]
[1735234200296,0.02556868,96000.0,95999.0,0.052128]
[1735234200595,0.02556868,96000.0,95990.0,0.0758751]
[1735234200596,0.0758751,96010.0,95990.0,0.001]
[1735234200801,0.0758751,96000.0,95997.0,0.052129]
[1735234200992,0.0758751,96007.0,95997.0,0.052129]
[1735234201193,0.052125,96005.0,95990.0,0.001]
[1735234201402,0.1517502,96000.0,95990.0,0.001]
[1735234201604,0.05213,95996.0,95990.0,0.001]
[1735234201907,0.05213,95995.0,95990.0,0.001]
[1735234202086,0.05213,95995.0,95984.0,0.18715123]
[1735234202287,0.0758751,95994.0,95984.0,0.18715123]
[1735234202598,0.0798751,96000.0,95984.0,0.18715123]
[1735234202797,0.0798751,96000.0,95989.0,0.052133]
[1735234202989,0.0758751,96000.0,95990.0,0.056132]
[1735234203802,0.0758751,96000.0,95990.0,0.055132]
[1735234204203,0.09856034,96000.0,95990.0,0.055132]
[1735234205302,0.09856034,96000.0,95990.0,0.052132]
[1735234205507,0.001,95994.0,95990.0,0.052132]
[1735234205801,0.001,95994.0,95985.0,0.052135]
[1735234205996,0.09856034,96000.0,95990.0,0.003]
[1735234206197,0.09856034,96000.0,95990.0,0.004]
[1735234206999,0.09856034,96000.0,95990.0,0.003]
[1735234207299,0.052132,95991.0,95990.0,0.003]
[1735234207499,0.17443544,96000.0,95977.0,0.18715123]
[1735234207696,0.0758751,95987.0,95977.0,0.18715123]
[1735234207895,0.052137,95983.0,95974.0,0.18715123]
[1735234208996,0.052137,95983.0,95977.0,0.006]
[1735234209799,0.053137,95983.0,95974.0,0.006]
[1735234209999,0.053137,95983.0,95977.0,0.003]
[1735234211308,0.002,95983.0,95977.0,0.009]
[1735234211709,0.0758751,95990.0,95977.0,0.003]
[1735234213105,0.001,95983.0,95977.0,0.003]
[1735234213300,0.09844749,95990.0,95977.0,0.003]
[1735234213608,0.09944749,95990.0,95977.0,0.003]
[1735234215006,0.09944749,95990.0,95977.0,0.005]
[1735234215506,0.09844749,95990.0,95977.0,0.003]
[1735234215713,0.052134,95987.0,95977.0,0.005]
[1735234215901,0.052135,95986.0,95977.0,0.005]
[1735234216096,0.309835,95986.0,95977.0,0.005]
[1735234216710,0.309835,95986.0,95977.0,0.003]
[1735234216910,0.309835,95986.0,95977.0,0.002]
[1735234217108,0.052136,95985.0,95977.0,0.004]
[1735234218007,0.2577,95986.0,95962.0,0.4772]
[1735234218208,0.1517502,95972.0,95951.0,0.24516317]
[1735234218404,0.0758751,95962.0,95952.0,0.44899579]
[1735234219212,0.0758751,95970.0,95952.0,0.2619]
[1735234219519,0.0758751,95990.0,95977.0,0.002]
[1735234220318,0.001,95962.0,95952.0,0.0844259]
[1735234220510,0.001,95962.0,95961.0,0.052148]
[1735234220905,0.0758751,95980.0,95969.0,0.052144]
[1735234221110,0.0758751,95980.0,95977.0,0.001]
[1735234221311,0.052136,95984.0,95977.0,0.001]
[1735234222019,0.0758751,95987.0,95977.0,0.001]
[1735234222412,0.0758751,95987.0,95978.0,0.2601]
[1735234223724,0.0758751,95987.0,95978.0,0.2611]
[1735234224018,0.052135,95985.0,95978.0,0.001]
[1735234224419,0.052135,95985.0,95970.0,0.5248]
[1735234224623,0.0758751,95980.0,95978.0,0.002]
[1735234224821,0.052135,95985.0,95978.0,0.002]
[1735234225022,0.052137,95983.0,95978.0,0.002]
[1735234225611,0.052137,95983.0,95978.0,0.001]
[1735234226312,0.052137,95983.0,95978.0,0.002]
[1735234227015,0.052139,95979.0,95978.0,0.002]
[1735234227227,0.02252655,95990.0,95955.0,0.2431]
[1735234227228,0.07593643,95988.0,95955.0,0.2431]
[1735234227420,0.052139,95979.0,95978.0,0.002]
[1735234227815,0.052139,95979.0,95978.0,0.003]
[1735234228011,0.052139,95979.0,95978.0,0.001]
[1735234228218,0.052139,95979.0,95978.0,0.002]
[1735234228823,0.052139,95979.0,95978.0,0.001]
[1735234229525,0.052139,95979.0,95978.0,0.002]
[1735234230324,0.07547606,95979.0,95978.0,0.002]
[1735234230720,0.07547606,95979.0,95978.0,0.001]
[1735234235214,0.052148,95963.0,95955.0,0.2431]
[1735234235527,0.052148,95961.0,95955.0,0.2431]
[1735234235725,0.02333706,95979.0,95955.0,0.2431]
[1735234235932,0.29249886,95990.0,95960.0,0.07593643]
[1735234236229,0.052134,95987.0,95969.0,0.052144]
[1735234236532,0.21656243,95990.0,95970.0,0.07593643]
[1735234236914,0.21656243,95990.0,95961.0,0.222]
[1735234236915,0.31514249,95990.0,95975.0,0.05214]
[1735234237118,0.09854196,95990.0,95976.0,0.504]
[1735234237324,0.07589833,95986.0,95976.0,0.504]
[1735234237528,0.052136,95985.0,95976.0,0.504]
[1735234237922,0.052136,95985.0,95977.0,0.2576]
[1735234238121,0.052136,95984.0,95977.0,0.2576]
[1735234238317,0.07689833,95986.0,95977.0,0.2576]
[1735234238517,0.052139,95979.0,95976.0,0.00068]
[1735234238723,0.2516,95985.0,95964.0,0.18709579]
[1735234238926,0.12803933,95974.0,95964.0,0.18709579]
[1735234239224,0.12803933,95974.0,95963.0,0.52198]
[1735234239427,0.12803933,95974.0,95963.0,0.5213]
[1735234240221,0.052143,95971.0,95963.0,0.5213]
[1735234240426,0.052143,95970.0,95963.0,0.5213]
[1735234240828,0.052144,95969.0,95963.0,0.5213]
[1735234241424,0.052144,95969.0,95963.0,0.5253]
[1735234241630,0.052145,95968.0,95963.0,0.5253]
[1735234242027,0.052145,95967.0,95963.0,0.5253]
[1735234243129,0.001,95970.0,95963.0,0.004]
[1735234243325,0.001,95969.0,95950.0,5.0]
[1735234243635,0.052153,95952.0,95950.0,5.0]
[1735234243835,0.052153,95952.0,95950.0,4.96509633]
[1735234244027,0.301549,95960.0,95950.0,4.96509633]
[1735234244229,0.052151,95956.0,95950.0,4.96509633]
[1735234244733,0.052152,95955.0,95950.0,4.97009633]
[1735234245330,0.052153,95952.0,95950.0,4.97009633]
[1735234245634,0.052153,95952.0,95950.0,4.96509633]
[1735234245832,0.052153,95952.0,95950.0,4.96909633]
[1735234246640,0.07485899,95952.0,95950.0,4.96909633]
[1735234246833,0.07485899,95952.0,95950.0,4.77881087]
[1735234247033,0.07485899,95952.0,95950.0,4.76981088]
[1735234247539,0.07485899,95952.0,95950.0,4.76681088]
[1735234247733,0.07485899,95952.0,95950.0,4.73389393]
[1735234247934,0.07485899,95952.0,95950.0,4.67562857]
[1735234248133,0.07485899,95952.0,95950.0,4.60567444]
[1735234248435,0.07585899,95952.0,95950.0,4.50379712]
[1735234250242,0.02370599,95952.0,95950.0,4.50379712]
[1735234250633,0.02370599,95952.0,95950.0,4.50579712]
[1735234250832,0.08311,95954.0,95950.0,4.50579712]
[1735234251038,0.00729,95961.0,95951.0,0.5293]
[1735234251238,0.24749993,95974.0,95957.0,0.05215]
[1735234251444,0.15179666,95970.0,95951.0,0.52998]
[1735234251644,0.07589833,95961.0,95951.0,0.5293]
[1735234252039,0.001,95954.0,95953.0,0.052152]
[1735234252340,0.07589833,95970.0,95955.0,0.052151]
[1735234252537,0.07589833,95970.0,95951.0,0.53298]
[1735234252745,0.07589833,95961.0,95951.0,0.5323]
[1735234253747,0.00833,95960.0,95951.0,0.5323]
[1735234253934,0.00833,95960.0,95951.0,0.5343]
[1735234254641,0.05215,95958.0,95951.0,0.5353]
[1735234255646,0.05215,95958.0,95952.0,0.2426]
[1735234256147,0.05215,95958.0,95953.0,0.002]
[1735234256543,0.02972283,95960.0,95953.0,0.002]
[1735234256840,0.12803633,95980.0,95961.0,0.052148]
[1735234257045,0.001,95960.0,95954.0,0.052152]
[1735234257246,0.07589833,95970.0,95961.0,0.052148]
[1735234257430,0.07589833,95970.0,95954.0,0.052152]
[1735234257631,0.07589833,95970.0,95953.0,0.002]
[1735234257632,0.001,95960.0,95956.0,0.052151]
[1735234257847,0.001,95960.0,95957.0,0.05215]
[1735234258044,0.001,95960.0,95953.0,0.005]
[1735234258045,0.001,95958.0,95953.0,0.003]
[1735234258247,0.00933,95960.0,95954.0,0.003]
[1735234258448,0.07589833,95970.0,95958.0,0.05215]
[1735234258939,0.001,95960.0,95958.0,0.05215]
[1735234259247,0.00989,95974.0,95962.0,0.052147]
[1735234259447,0.00989,95974.0,95956.0,0.008]
[1735234259649,0.00833,95973.0,95963.0,0.052147]
[1735234259940,0.08422833,95973.0,95963.0,0.052147]
[1735234260443,0.08422833,95973.0,95956.0,0.005]
[1735234260647,0.07589833,95966.0,95956.0,0.057151]
[1735234260848,0.00833,95973.0,95956.0,0.005]
[1735234261050,0.00933,95973.0,95966.0,0.052145]
[1735234261451,0.00833,95973.0,95966.0,0.052145]
[1735234261651,0.00933,95973.0,95966.0,0.052145]
[1735234262835,0.00933,95973.0,95966.0,0.055145]
[1735234263051,0.00933,95973.0,95966.0,0.060145]
[1735234263450,0.00933,95973.0,95966.0,0.008]
[1735234263643,0.052143,95971.0,95966.0,0.009]
[1735234264554,0.052144,95970.0,95966.0,0.009]
[1735234264767,0.052144,95970.0,95966.0,0.003]
[1735234264966,0.052144,95970.0,95966.0,0.009]
[1735234265654,0.052144,95969.0,95966.0,0.009]
[1735234265855,0.052145,95968.0,95966.0,0.009]
[1735234266661,0.001,95971.0,95966.0,0.009]
[1735234266963,0.00833,95973.0,95966.0,0.003]
[1735234267266,0.001,95968.0,95966.0,0.009]
[1735234267661,0.053145,95968.0,95966.0,0.006]
[1735234267970,0.053145,95968.0,95966.0,0.009]
[1735234268168,0.052145,95968.0,95966.0,0.009]
[1735234268558,0.052145,95968.0,95966.0,0.008]
[1735234268759,0.061472,95973.0,95966.0,0.008]
[1735234269365,0.061472,95973.0,95966.0,0.006]
[1735234269566,0.001,95968.0,95966.0,0.008]
[1735234269867,0.053145,95968.0,95966.0,0.008]
[1735234270173,0.00833,95973.0,95966.0,0.002]
[1735234270467,0.00933,95973.0,95966.0,0.008]
[1735234270669,0.052144,95970.0,95966.0,0.008]
[1735234270859,0.053145,95968.0,95966.0,0.008]
[1735234271669,0.001,95968.0,95966.0,0.008]
[1735234271859,0.001,95968.0,95966.0,0.006]
[1735234272168,0.053145,95968.0,95966.0,0.008]
[1735234272359,0.052145,95968.0,95966.0,0.002]
[1735234272561,0.052145,95968.0,95966.0,0.007]
[1735234272763,0.00933,95973.0,95950.0,4.50279712]
[1735234273061,0.07589833,95960.0,95950.0,4.50279712]
[1735234273369,0.001,95968.0,95950.0,4.50279712]
[1735234273571,0.052145,95967.0,95966.0,0.005]
[1735234274068,0.052145,95967.0,95950.0,4.50779712]
[1735234274370,0.001,95960.0,95950.0,4.50779712]
[1735234274971,0.00833,95959.0,95950.0,4.50779712]
[1735234275373,0.00833,95959.0,95950.0,4.51179712]
[1735234275576,0.00833,95959.0,95950.0,4.50679712]
[1735234276271,0.00933,95959.0,95950.0,4.50679712]
[1735234276472,0.01918,95959.0,95950.0,4.50679712]
[1735234277269,0.01818,95959.0,95950.0,4.50679712]
[1735234277472,0.01918,95959.0,95950.0,4.50679712]
[1735234278066,0.04529288,95959.0,95950.0,4.50679712]
[1735234278262,0.01918,95959.0,95950.0,4.50679712]
[1735234278567,0.01918,95959.0,95950.0,4.50279712]
[1735234278772,0.01918,95959.0,95950.0,4.50679712]
[1735234279273,0.04507999,95959.0,95950.0,4.50679712]
[1735234279465,0.2452,95958.0,95950.0,4.50679712]
[1735234279674,0.052153,95953.0,95950.0,4.50679712]
[1735234280169,0.05215,95957.0,95950.0,4.50679712]
[1735234280370,0.052152,95954.0,95950.0,4.50679712]
[1735234280575,0.76186001,95958.0,95950.0,4.50679712]
[1735234280770,0.7613,95958.0,95950.0,4.50679712]
[1735234280970,0.001,95953.0,95950.0,4.50679712]
[1735234282182,0.001,95953.0,95950.0,4.50579712]
[1735234282472,0.01818,95959.0,95950.0,4.50579712]
[1735234282678,0.001,95954.0,95950.0,4.50579712]
[1735234283077,0.052153,95952.0,95950.0,4.50579712]
[1735234283275,0.2515,95951.0,95950.0,4.50579712]
[1735234284183,0.02679193,95958.0,95950.0,4.50579712]
[1735234284376,0.02615193,95958.0,95950.0,4.50579712]
[1735234284680,0.01918,95959.0,95950.0,4.50579712]
[1735234285078,0.01918,95959.0,95950.0,4.55495112]
[1735234285384,0.001,95952.0,95951.0,0.052154]
[1735234285584,0.001,95952.0,95951.0,0.537054]
[1735234285786,0.01818,95959.0,95951.0,0.537054]
[1735234285976,0.01918,95959.0,95951.0,0.537054]
[1735234286774,0.01918,95959.0,95951.0,0.4849]
[1735234287683,0.01918,95959.0,95951.0,0.4879]
[1735234288384,0.02621863,95971.0,95970.0,0.052143]
[1735234288579,0.21714414,95977.0,95969.0,0.052144]
[1735234288786,0.21658413,95977.0,95970.0,0.7655]
[1735234289283,0.24186387,95977.0,95970.0,0.7655]
[1735234289476,0.052141,95975.0,95970.0,0.7655]
[1735234289671,0.00453,95976.0,95953.0,0.18709579]
[1735234289871,0.052144,95969.0,95954.0,0.7655]
[1735234290080,0.052141,95975.0,95959.0,0.052149]
[1735234290387,0.052142,95974.0,95954.0,0.76618]
[1735234290581,0.00453,95976.0,95954.0,0.7655]
[1735234290774,0.00453,95976.0,95970.0,0.002]
[1735234291770,0.00553,95976.0,95970.0,0.002]
[1735234291977,0.001,95974.0,95964.0,0.052147]
[1735234292384,0.001,95974.0,95970.0,0.001]
[1735234293777,0.00553,95976.0,95970.0,0.003]
[1735234294772,0.00553,95976.0,95971.0,0.2592]
[1735234295087,0.00453,95976.0,95975.0,0.052141]
[1735234295383,0.21658413,95986.0,95972.0,0.50588]
[1735234295580,0.21658413,95986.0,95975.0,0.052141]
[1735234295889,0.21658413,95986.0,95985.0,0.052135]
[1735234295890,0.24245767,95986.0,95985.0,0.052135]
[1735234296387,0.02587354,95986.0,95985.0,0.052135]
[1735234296589,0.001,95986.0,95985.0,0.052135]
[1735234297477,0.001,95986.0,95980.0,0.052138]
[1735234297679,0.001,95986.0,95975.0,0.001]
[1735234297894,0.001,95986.0,95972.0,0.558822]
[1735234298090,0.07589833,95982.0,95973.0,0.052142]
[1735234298388,0.002,95986.0,95973.0,0.052142]
[1735234298890,0.07589833,95990.0,95980.0,0.001]
[1735234299286,0.052137,95981.0,95980.0,0.001]
[1735234299690,0.052139,95978.0,95975.0,0.001]
[1735234299879,0.05214,95976.0,95975.0,0.001]
[1735234300486,0.052141,95974.0,95973.0,0.003]
[1735234300791,0.052141,95974.0,95928.0,0.052166]
[1735234300792,0.052141,95974.0,95950.0,4.50279712]
[1735234300993,0.07589833,95964.0,95950.0,4.50279712]
[1735234301192,0.052151,95956.0,95950.0,4.50279712]
[1735234301387,0.2384,95963.0,95950.0,4.50279712]
[1735234301585,0.052153,95952.0,95950.0,4.50279712]
[1735234302383,0.052153,95952.0,95950.0,4.50379712]
[1735234303195,0.001,95956.0,95950.0,4.50379712]
[1735234303494,0.02626036,95956.0,95950.0,4.50379712]
[1735234303698,0.001,95956.0,95950.0,4.50379712]
[1735234303993,0.052149,95960.0,95950.0,4.50579712]
[1735234304200,0.001,95952.0,95950.0,4.50579712]
[1735234304695,0.001,95956.0,95950.0,4.50479712]
[1735234305091,0.02510391,95960.0,95950.0,4.50479712]
[1735234305395,0.001,95960.0,95958.0,0.05215]
[1735234305598,0.001,95960.0,95959.0,0.2465]
[1735234305788,0.02611699,95970.0,95959.0,0.298649]
[1735234305989,0.07589833,95970.0,95959.0,0.2465]
[1735234306188,0.07589833,95970.0,95960.0,0.052149]
[1735234307598,0.15387889,95980.0,95960.0,0.052149]
[1735234307888,0.10174089,95980.0,95959.0,0.2465]
[1735234308087,0.02584256,95980.0,95968.0,0.052144]
[1735234308301,0.07589833,95980.0,95969.0,0.2318]
[1735234308502,0.001,95970.0,95969.0,0.2318]
[1735234308891,0.07589833,95980.0,95969.0,0.2318]
[1735234309192,0.07689833,95980.0,95969.0,0.2318]
[1735234309707,0.05214,95977.0,95960.0,0.052149]
[1735234309895,0.07589833,95970.0,95960.0,0.052149]
[1735234310297,0.07589833,95970.0,95968.0,0.002]
[1735234310498,0.001,95970.0,95968.0,0.002]
[1735234311205,0.001,95970.0,95960.0,0.003]
[1735234311906,0.001,95970.0,95960.0,0.055149]
[1735234312307,0.001,95970.0,95960.0,0.052149]
[1735234312499,0.001,95970.0,95968.0,0.002]
[1735234314002,0.001,95970.0,95962.0,0.052148]
[1735234314212,0.052148,95962.0,95960.0,0.003]
[1735234314807,0.48766001,95969.0,95950.0,4.50279712]
[1735234315015,0.052153,95952.0,95950.0,4.50279712]
[1735234315305,0.2501,95951.0,95950.0,4.50279712]
[1735234316396,0.849354,95951.0,95950.0,4.08549404]
[1735234316710,0.97939932,95951.0,95950.0,3.7501531]
[1735234316912,0.98266135,95951.0,95950.0,2.0098531]
[1735234317108,0.98266135,95951.0,95950.0,1.91851589]
[1735234317306,0.98266135,95951.0,95950.0,1.12494429]
[1735234317496,0.052169,95923.0,95918.0,0.18709579]
[1735234317697,1.20683559,95951.0,95919.0,0.75243525]
[1735234317698,0.00326203,95922.0,95919.0,0.75243525]
[1735234317897,0.07589833,95928.0,95919.0,0.29997389]
[1735234318100,0.37589833,95928.0,95919.0,0.29415018]
[1735234318305,0.1042204,95927.0,95919.0,0.29415018]
[1735234318705,0.052171,95920.0,95919.0,0.17072237]
[1735234319010,0.052171,95920.0,95919.0,0.13894886]
[1735234319417,0.10425028,95920.0,95919.0,0.13894886]
[1735234319709,0.052167,95926.0,95919.0,0.13894886]
[1735234319905,0.03138166,95927.0,95919.0,0.13894886]
[1735234319906,0.001,95922.0,95919.0,0.13894886]
[1735234320500,0.001,95920.0,95919.0,0.13894886]
[1735234321019,0.10853961,95928.0,95919.0,0.13894886]
[1735234321206,0.001,95922.0,95919.0,0.13994886]
[1735234321407,0.001,95922.0,95920.0,0.13894886]
[1735234321604,0.03264128,95928.0,95920.0,0.37374886]
[1735234321807,0.07589833,95930.0,95920.0,0.37374886]
[1735234322014,0.18473376,95937.0,95920.0,0.37374886]
[1735234322401,0.07589833,95930.0,95920.0,0.37374886]
[1735234323518,0.07689833,95930.0,95920.0,0.37374886]
[1735234324605,0.07689833,95930.0,95920.0,0.37474886]
[1735234325706,0.052168,95925.0,95920.0,0.37474886]
[1735234325906,0.07689833,95930.0,95920.0,0.13994886]
[1735234326107,0.05217,95921.0,95920.0,0.13994886]
[1735234327621,0.05317,95921.0,95920.0,0.13994886]
[1735234327808,0.05317,95921.0,95920.0,0.10218295]
[1735234328320,0.39417238,95921.0,95920.0,0.06417295]
[1735234328509,0.09417238,95921.0,95920.0,0.05737941]
[1735234328708,0.09417238,95921.0,95920.0,0.05637941]
[1735234328919,0.09417238,95921.0,95920.0,0.02069941]
[1735234328920,0.39417238,95921.0,95920.0,0.02069941]
[1735234329213,0.49842538,95921.0,95920.0,0.02069941]
[1735234329810,0.19842538,95921.0,95920.0,0.02069941]
[1735234330419,0.052181,95901.0,95900.0,0.08253669]
[1735234330719,0.052181,95901.0,95900.0,0.04677262]
[1735234331114,0.052181,95901.0,95900.0,5.04677262]
[1735234331622,0.052181,95901.0,95900.0,5.0320948]
[1735234331821,0.052181,95901.0,95900.0,4.99587464]
[1735234332119,0.052181,95901.0,95900.0,4.92620396]
[1735234332312,0.77238168,95901.0,95900.0,2.50778338]
[1735234332516,0.77238168,95901.0,95900.0,1.54950143]
[1735234332724,0.47238168,95901.0,95900.0,1.52088758]
[1735234333024,0.77338168,95901.0,95900.0,1.42004207]
[1735234333212,0.35361872,95901.0,95900.0,1.38221154]
[1735234333406,0.65261872,95901.0,95900.0,1.36026154]
[1735234333708,0.65261872,95901.0,95900.0,1.26780248]
[1735234333909,0.76736321,95901.0,95900.0,0.68682926]
[1735234334118,0.052201,95865.0,95861.0,0.4721]
[1735234334313,0.052201,95864.0,95862.0,0.41712002]
[1735234336121,0.053201,95864.0,95862.0,0.41712002]
[1735234336322,0.053201,95864.0,95862.0,0.22817049]
[1735234336528,0.053201,95864.0,95862.0,0.16236823]
[1735234336529,0.10431553,95863.0,95862.0,0.16236823]
[1735234336716,0.052203,95860.0,95831.0,0.71018]
[1735234336911,0.07589833,95841.0,95831.0,0.7095]
[1735234337119,0.12811233,95841.0,95831.0,0.7095]
[1735234338218,0.07589833,95850.0,95832.0,0.052218]
[1735234338622,0.001,95841.0,95833.0,0.052218]
[1735234338921,0.052205,95857.0,95833.0,0.052218]
[1735234339120,0.001,95841.0,95831.0,0.71018]
[1735234339325,0.04052862,95863.0,95831.0,1.0095]
[1735234339532,0.052199,95869.0,95831.0,1.0095]
[1735234339533,0.00110793,95847.0,95832.0,0.052218]
[1735234339719,0.07589833,95860.0,95840.0,0.052214]
[1735234340323,0.001,95841.0,95840.0,0.052214]
[1735234340522,0.001,95850.0,95840.0,0.052214]
[1735234340923,0.07589833,95870.0,95840.0,0.07589833]
[1735234341119,0.001,95860.0,95854.0,0.052206]
[1735234341315,0.07589833,95880.0,95850.0,0.07589833]
[1735234341521,0.04004714,95880.0,95860.0,0.07589833]
[1735234341821,0.00156521,95885.0,95860.0,0.07589833]
[1735234342023,0.00156521,95885.0,95871.0,0.052197]
[1735234342217,0.20576313,95908.0,95870.0,0.07589833]
[1735234342412,0.07589833,95900.0,95872.0,0.052196]
[1735234342624,0.07589833,95882.0,95865.0,0.0522]
[1735234342826,0.052189,95886.0,95860.0,1.17072]
[1735234343126,0.001,95885.0,95860.0,1.25089833]
[1735234343312,0.001,95885.0,95860.0,0.38189833]
[1735234343526,0.12808533,95890.0,95872.0,0.004]
[1735234343527,0.052187,95890.0,95872.0,0.004]
[1735234343917,0.052183,95897.0,95873.0,0.052196]
[1735234344119,0.052186,95892.0,95873.0,0.052196]
[1735234344320,0.11743829,95900.0,95872.0,0.004]
[1735234344321,0.07589833,95890.0,95872.0,0.004]
[1735234344520,0.07589833,95883.0,95873.0,0.2307]
[1735234344824,0.05219,95885.0,95873.0,0.2307]
[1735234345328,0.052183,95898.0,95873.0,0.2307]
[1735234345529,0.07589833,95890.0,95873.0,0.2307]
[1735234345725,0.07589833,95883.0,95873.0,0.2347]
[1735234345921,0.15179666,95883.0,95873.0,0.2347]
[1735234346120,0.052195,95875.0,95873.0,0.2307]
[1735234346316,0.052195,95875.0,95873.0,0.2347]
[1735234346718,0.052195,95875.0,95873.0,0.2307]
[1735234346930,0.052195,95875.0,95873.0,0.2357]
[1735234347223,0.04013492,95879.0,95873.0,0.2357]
[1735234347426,0.3508,95895.0,95873.0,0.2357]
[1735234347620,0.3508,95895.0,95873.0,0.2347]
[1735234347815,0.39032134,95895.0,95873.0,0.2347]
[1735234348212,0.44250534,95895.0,95873.0,0.2347]
[1735234348618,0.11413339,95890.0,95873.0,0.2357]
[1735234348830,0.11413339,95890.0,95874.0,0.2432]
[1735234349529,0.052187,95891.0,95874.0,0.2432]
[1735234350037,0.11413339,95890.0,95874.0,0.2472]
[1735234351833,0.052187,95891.0,95874.0,0.2472]
[1735234354027,0.052187,95890.0,95874.0,0.2472]
[1735234355433,0.39088135,95895.0,95874.0,0.2472]
[1735234355633,0.052188,95888.0,95874.0,0.2472]
[1735234356222,0.39096134,95895.0,95874.0,0.2472]
[1735234356425,0.44250534,95895.0,95874.0,0.2432]
[1735234356627,0.44350534,95895.0,95874.0,0.2482]
[1735234356827,0.44350534,95895.0,95874.0,0.2492]
[1735234357125,0.001,95888.0,95874.0,0.2492]
[1735234358234,0.001,95888.0,95874.0,0.2482]
[1735234358435,0.001,95888.0,95874.0,0.2492]
[1735234358635,0.11413339,95890.0,95874.0,0.2492]
[1735234358834,0.052195,95876.0,95874.0,0.006]